bitfinex-derivatives/quotes_BTCF0:USTF0_20250907
["timestamp","ask_amount","ask_price","bid_price","bid_amount"]
[1757262004247,0.00113484,111280.0,111270.0,1.47080039]
[1757262004649,0.00113484,111280.0,111270.0,1.66867562]
[1757262006545,0.00113484,111280.0,111270.0,1.8302078]
[1757262006946,0.00113484,111280.0,111270.0,1.43445734]
[1757262007143,0.00113484,111280.0,111270.0,1.8302078]
[1757262008848,0.00113484,111280.0,111270.0,1.43445734]
[1757262009049,0.00113484,111280.0,111270.0,1.8302078]
[1757262011245,0.00113484,111280.0,111270.0,1.66867562]
[1757262011446,0.00113484,111280.0,111270.0,0.84871562]
[1757262011648,0.00113484,111280.0,111270.0,1.66863562]
[1757262016947,0.00113484,111280.0,111270.0,1.8301678]
[1757262020651,0.001,111280.0,111270.0,1.8301678]
[1757262020857,0.03009209,111290.0,111280.0,0.0364]
[1757262021058,0.02999209,111290.0,111280.0,0.70611368]
[1757262021954,0.02999209,111290.0,111280.0,0.50597038]
[1757262022758,0.02999209,111290.0,111280.0,0.79597038]
[1757262023459,0.03199209,111290.0,111280.0,0.79597038]
[1757262024462,0.03299209,111290.0,111280.0,0.79597038]
[1757262025160,0.03299209,111290.0,111280.0,0.48597038]
[1757262025459,0.03299209,111290.0,111280.0,0.50597038]
[1757262025658,0.03299209,111290.0,111280.0,0.80597038]
[1757262026063,0.03299209,111290.0,111280.0,0.50597038]
[1757262027363,0.03299209,111290.0,111280.0,1.21599368]
[1757262029767,0.03299209,111290.0,111280.0,1.05425523]
[1757262036371,0.03299209,111290.0,111280.0,1.21608493]
[1757262038672,0.03299209,111290.0,111280.0,1.58608493]
[1757262039173,0.03299209,111290.0,111280.0,1.21608493]
[1757262039372,0.03299209,111290.0,111280.0,1.23608493]
[1757262045066,0.03299209,111290.0,111280.0,1.67594173]
[1757262046278,0.03299209,111290.0,111280.0,1.58608493]
[1757262046777,0.03299209,111290.0,111280.0,1.42425523]
[1757262048380,0.03299209,111290.0,111280.0,1.58608493]
[1757262051781,0.03299209,111290.0,111280.0,1.21608493]
[1757262053384,0.03299209,111290.0,111280.0,1.0182097]
[1757262053682,0.03299209,111290.0,111280.0,1.21608493]
[1757262054784,0.03299209,111290.0,111280.0,1.05425523]
[1757262056387,0.03299209,111290.0,111280.0,1.21609077]
[1757262058290,0.03299209,111290.0,111280.0,1.4139538]
[1757262060386,0.03299209,111290.0,111280.0,1.4138338]
[1757262060986,0.23086122,111290.0,111280.0,0.19833554]
[1757262061290,0.69156035,111290.0,111280.0,0.13581941]
[1757262061685,0.49369122,111290.0,111280.0,0.13581941]
[1757262065590,0.49369122,111290.0,111280.0,0.02253]
[1757262072593,0.29582209,111290.0,111280.0,0.02253]
[1757262072793,0.49369122,111290.0,111280.0,0.02253]
[1757262077891,0.24369122,111290.0,111280.0,0.13571193]
[1757262079794,1.06333122,111290.0,111280.0,0.13571193]
[1757262080294,1.06333122,111290.0,111280.0,0.02253]
[1757262084198,0.24369122,111290.0,111280.0,0.02253]
[1757262084493,0.04582209,111290.0,111280.0,0.02253]
[1757262084699,0.91945122,111290.0,111280.0,0.03617]
[1757262085400,0.91945122,111290.0,111280.0,0.23403913]
[1757262085596,0.24369122,111290.0,111280.0,0.23403913]
[1757262085796,1.06329122,111290.0,111280.0,0.23403913]
[1757262095906,1.06329122,111290.0,111280.0,0.03617]
[1757262096094,1.06329122,111290.0,111280.0,0.23403913]
[1757262096404,1.06329122,111290.0,111280.0,0.03617]
[1757262097601,1.06329122,111290.0,111280.0,0.23403913]
[1757262098697,1.06329122,111290.0,111280.0,0.34730795]
[1757262101704,0.86542209,111290.0,111280.0,0.23403913]
[1757262101905,1.06329122,111290.0,111280.0,0.23403913]
[1757262103100,1.06329122,111290.0,111280.0,0.02253]
[1757262103306,1.06329122,111290.0,111280.0,0.03622]
[1757262103807,1.06329122,111290.0,111280.0,0.19805554]
[1757262104407,1.06329122,111290.0,111280.0,0.39592467]
[1757262107006,1.06329122,111290.0,111280.0,0.23408913]
[1757262108510,0.86542209,111290.0,111280.0,0.23408913]
[1757262108710,1.06329122,111290.0,111280.0,0.23408913]
[1757262109210,1.06329122,111290.0,111280.0,0.03622]
[1757262109506,1.06329122,111290.0,111280.0,0.19805554]
[1757262111905,1.06329122,111290.0,111280.0,0.03622]
[1757262118414,1.06334568,111290.0,111280.0,0.19805554]
[1757262121613,1.06334568,111290.0,111280.0,0.03622]
[1757262122714,0.86542209,111290.0,111280.0,0.03622]
[1757262122918,1.06334568,111290.0,111280.0,0.03622]
[1757262130426,1.06334568,111290.0,111280.0,0.14949994]
[1757262131327,1.06334568,111290.0,111280.0,0.14949964]
[1757262131727,1.06334568,111290.0,111280.0,0.03622]
[1757262137432,1.06334568,111290.0,111280.0,0.14949887]
[1757262138032,1.06334568,111290.0,111280.0,0.03622]
[1757262147741,0.24374568,111290.0,111280.0,0.03622]
[1757262147941,0.85187209,111290.0,111280.0,0.57400029]
[1757262148146,0.01195209,111290.0,111280.0,0.73583583]
[1757262148343,0.01195209,111290.0,111280.0,1.11583583]
[1757262148544,0.01195209,111290.0,111280.0,0.73583583]
[1757262148743,0.01195209,111290.0,111280.0,0.75583583]
[1757262149046,0.03423209,111290.0,111280.0,1.08583583]
[1757262150146,0.02528,111290.0,111280.0,1.08583583]
[1757262150448,0.003,111290.0,111280.0,1.08583583]
[1757262150644,0.003,111290.0,111280.0,0.92400029]
[1757262154252,0.001,111290.0,111280.0,0.59400029]
[1757262154753,0.82764914,111300.0,111280.0,0.59400029]
[1757262154946,0.85024914,111300.0,111290.0,0.39440906]
[1757262155143,0.85014914,111300.0,111290.0,0.39450906]
[1757262155646,0.85014914,111300.0,111290.0,0.23290359]
[1757262157054,0.85314914,111300.0,111290.0,0.23290359]
[1757262158155,0.85214914,111300.0,111290.0,0.23290359]
[1757262158450,0.85314914,111300.0,111290.0,0.23290359]
[1757262160256,0.85314914,111300.0,111290.0,0.32275239]
[1757262161861,0.85314914,111300.0,111290.0,0.03498]
[1757262162361,0.85314914,111300.0,111290.0,0.23290359]
[1757262164780,0.85314914,111300.0,111290.0,0.03498]
[1757262164963,0.85314914,111300.0,111290.0,0.23290359]
[1757262165665,0.85314914,111300.0,111290.0,0.03498]
[1757262165864,0.85314914,111300.0,111290.0,0.23290359]
[1757262168763,0.85314914,111300.0,111290.0,0.24595109]
[1757262171668,0.85314914,111300.0,111290.0,0.23290359]
[1757262171863,0.85314914,111300.0,111290.0,0.24595366]
[1757262173372,0.85314914,111300.0,111290.0,0.40755913]
[1757262174169,0.85314914,111300.0,111290.0,0.24595366]
[1757262175068,0.85314914,111300.0,111290.0,0.40755913]
[1757262176973,0.85314914,111300.0,111290.0,0.20963554]
[1757262177170,0.85314914,111300.0,111290.0,0.40755913]
[1757262177371,0.85314914,111300.0,111290.0,0.20963554]
[1757262177571,0.85314914,111300.0,111290.0,0.40755913]
[1757262180469,1.05100113,111300.0,111290.0,0.77748753]
[1757262180972,1.05100113,111300.0,111290.0,0.42748753]
[1757262181474,1.05100113,111300.0,111290.0,0.74748753]
[1757262181970,1.05100113,111300.0,111290.0,0.42748753]
[1757262182170,1.05100113,111300.0,111290.0,0.75748753]
[1757262182674,0.85266914,111300.0,111290.0,0.75748753]
[1757262187575,0.85266914,111300.0,111290.0,0.40748753]
[1757262187874,0.85266914,111300.0,111290.0,0.42748753]
[1757262188475,0.85266914,111300.0,111290.0,0.71748753]
[1757262189677,0.85266914,111300.0,111290.0,0.76748753]
[1757262190977,0.85266914,111300.0,111290.0,0.56963554]
[1757262191171,0.85266914,111300.0,111290.0,0.76748753]
[1757262193282,0.85266914,111300.0,111290.0,0.56963554]
[1757262193581,0.85266914,111300.0,111290.0,0.76748753]
[1757262197986,0.85266914,111300.0,111290.0,0.76750337]
[1757262198676,0.85266914,111300.0,111290.0,0.56965138]
[1757262198883,0.85266914,111300.0,111290.0,0.76750337]
[1757262199181,0.85266914,111300.0,111290.0,0.40750337]
[1757262199381,0.85266914,111300.0,111290.0,0.42750337]
[1757262199579,1.05052113,111300.0,111290.0,0.40750337]
[1757262203197,1.06382113,111300.0,111290.0,0.39366337]
[1757262203494,1.06382113,111300.0,111290.0,0.39372066]
[1757262203697,1.26167312,111300.0,111290.0,0.39372066]
[1757262204395,1.06382113,111300.0,111290.0,0.39372066]
[1757262204596,1.26167312,111300.0,111290.0,0.39372066]
[1757262204791,1.06382113,111300.0,111290.0,0.39372066]
[1757262205797,1.06382113,111300.0,111290.0,0.19586867]
[1757262205992,1.06382113,111300.0,111290.0,0.39372066]
[1757262206290,1.06382113,111300.0,111290.0,0.40725066]
[1757262206995,1.06382113,111300.0,111290.0,0.20939867]
[1757262207197,1.06382113,111300.0,111290.0,0.40725066]
[1757262212302,0.86596914,111300.0,111290.0,0.40725066]
[1757262212498,1.06382113,111300.0,111290.0,0.40725066]
[1757262215903,1.05052113,111300.0,111290.0,0.40725066]
[1757262216903,0.23224113,111300.0,111290.0,0.40725066]
[1757262217105,1.05004113,111300.0,111290.0,0.40725066]
[1757262217304,0.23224113,111300.0,111290.0,0.40725066]
[1757262217507,1.05004113,111300.0,111290.0,0.40725066]
[1757262219602,1.05004113,111300.0,111290.0,0.39412746]
[1757262219796,1.05004113,111300.0,111290.0,0.40724916]
[1757262223512,1.05004113,111300.0,111290.0,0.20939717]
[1757262223712,1.05004113,111300.0,111290.0,0.40724916]
[1757262225916,1.05004113,111300.0,111290.0,0.20939717]
[1757262226213,1.05004113,111300.0,111290.0,0.40724916]
[1757262230718,1.05004113,111300.0,111290.0,0.20939717]
[1757262230917,1.05004113,111300.0,111290.0,0.40724916]
[1757262231918,1.05004113,111300.0,111290.0,0.20939717]
[1757262232123,1.05004113,111300.0,111290.0,0.40724916]
[1757262237219,1.05004113,111300.0,111290.0,0.20939717]
[1757262237518,1.05004113,111300.0,111290.0,0.40724916]
[1757262238216,1.05004113,111300.0,111290.0,0.20939717]
[1757262238417,1.05004113,111300.0,111290.0,0.40724916]
[1757262239620,1.06339113,111300.0,111290.0,0.40724916]
[1757262240321,0.86553914,111300.0,111290.0,0.20939717]
[1757262243420,0.86553914,111300.0,111290.0,0.0482117]
[1757262244112,0.86553914,111300.0,111290.0,0.0342617]
[1757262244318,1.06340908,111300.0,111290.0,0.0132217]
[1757262244816,1.06340908,111300.0,111290.0,0.0355517]
[1757262247116,0.24560908,111300.0,111290.0,0.0355517]
[1757262247320,1.06300908,111300.0,111290.0,0.0355517]
[1757262252027,0.24560908,111300.0,111290.0,0.0355517]
[1757262252228,0.85440908,111300.0,111290.0,0.0355517]
[1757262252527,0.24560908,111300.0,111290.0,0.0355517]
[1757262252729,0.85436908,111300.0,111290.0,0.0355517]
[1757262253027,0.86509914,111300.0,111290.0,0.26842419]
[1757262253414,0.85174914,111300.0,111290.0,0.26842419]
[1757262254325,0.03438914,111300.0,111290.0,0.26842419]
[1757262254532,0.85174914,111300.0,111290.0,0.26842419]
[1757262254827,0.85174914,111300.0,111290.0,0.26846869]
[1757262258023,0.85170914,111300.0,111290.0,0.26846869]
[1757262258734,0.03438914,111300.0,111290.0,0.41690796]
[1757262258930,0.63190914,111300.0,111290.0,0.41690796]
[1757262260234,0.63190914,111300.0,111290.0,0.25530249]
[1757262265837,0.63190914,111300.0,111290.0,0.05743255]
[1757262266032,0.63190914,111300.0,111290.0,0.25530249]
[1757262266642,0.64525914,111300.0,111290.0,0.25530249]
[1757262267143,0.64525914,111300.0,111290.0,0.05743255]
[1757262267342,0.64525914,111300.0,111290.0,0.04348255]
[1757262267844,0.84312908,111300.0,111290.0,0.02115255]
[1757262268441,0.64525914,111300.0,111290.0,0.02115255]
[1757262268744,0.84312908,111300.0,111290.0,0.02115255]
[1757262269547,0.84312908,111300.0,111290.0,0.04348255]
[1757262273939,0.84312908,111300.0,111290.0,0.20508802]
[1757262274953,0.84312908,111300.0,111290.0,0.18403547]
[1757262275252,0.84312908,111300.0,111290.0,0.18852547]
[1757262278353,0.84312908,111300.0,111290.0,0.16619547]
[1757262278663,0.84312908,111300.0,111290.0,0.18822547]
[1757262281252,0.84312908,111300.0,111290.0,0.16619547]
[1757262282757,0.85385908,111300.0,111290.0,0.16619547]
[1757262284553,0.85385908,111300.0,111290.0,0.00459]
[1757262286158,0.85385908,111300.0,111290.0,0.02662]
[1757262289954,0.85385908,111300.0,111290.0,0.00459]
[1757262293158,1.05172902,111300.0,111290.0,0.00459]
[1757262293358,0.85385908,111300.0,111290.0,0.00459]
[1757262293758,1.10385908,111300.0,111290.0,0.00459]
[1757262296760,1.09312908,111300.0,111290.0,0.00459]
[1757262300876,1.10385908,111300.0,111290.0,0.00459]
[1757262301366,1.30172902,111300.0,111290.0,0.11782036]
[1757262302371,1.30185232,111300.0,111290.0,0.11782036]
[1757262302968,0.70433232,111300.0,111290.0,0.11782036]
[1757262303471,1.52125232,111300.0,111290.0,0.11782036]
[1757262304366,0.70433232,111300.0,111290.0,0.11782036]
[1757262304669,1.52125232,111300.0,111290.0,0.11782036]
[1757262305166,0.70433232,111300.0,111290.0,0.11782036]
[1757262305365,1.52125232,111300.0,111290.0,0.11782036]
[1757262305975,0.70433232,111300.0,111290.0,0.11782036]
[1757262306165,1.52125232,111300.0,111290.0,0.11782036]
[1757262307072,0.70433232,111300.0,111290.0,0.11782036]
[1757262307273,1.52125232,111300.0,111290.0,0.11782036]
[1757262308686,0.30846914,111300.0,111290.0,0.11782036]
[1757262308877,1.52121232,111300.0,111290.0,0.11782036]
[1757262311077,1.52121232,111300.0,111290.0,0.00459]
[1757262312778,0.70433232,111300.0,111290.0,0.00459]
[1757262312976,1.52121232,111300.0,111290.0,0.00459]
[1757262315277,1.52121232,111300.0,111290.0,0.11782036]
[1757262339303,1.27121232,111300.0,111290.0,0.11782036]
[1757262348507,1.27097232,111300.0,111290.0,0.11782036]
[1757262362316,1.27095372,111300.0,111290.0,0.11782036]
[1757262362916,1.28429372,111300.0,111290.0,0.11782036]
[1757262376217,1.28429372,111300.0,111290.0,0.00459]
[1757262376820,1.28429372,111300.0,111290.0,0.11788877]
[1757262387830,0.88844914,111300.0,111290.0,0.11788877]
[1757262388128,1.28429372,111300.0,111290.0,0.11788877]
[1757262388327,1.51429372,111300.0,111290.0,0.11788877]
[1757262388528,1.11844914,111300.0,111290.0,0.11788877]
[1757262388827,1.51429372,111300.0,111290.0,0.09688877]
[1757262389026,1.51429372,111300.0,111280.0,0.16174031]
[1757262389233,1.51429372,111300.0,111280.0,0.00013484]
[1757262389234,0.01888,111290.0,111280.0,0.00013484]
[1757262389424,0.21680229,111290.0,111280.0,0.00013484]
[1757262389922,0.21680229,111290.0,111280.0,0.02131484]
[1757262390126,0.21680229,111290.0,111280.0,0.00013484]
[1757262390331,0.01888,111290.0,111280.0,0.02131484]
[1757262390527,0.21680229,111290.0,111280.0,0.02131484]
[1757262390732,0.21780229,111290.0,111280.0,0.02131484]
[1757262391429,0.21780229,111290.0,111280.0,0.03497484]
[1757262391628,0.21880229,111290.0,111280.0,0.03497484]
[1757262392326,0.85422,111290.0,111280.0,0.03497484]
[1757262392526,1.05214229,111290.0,111280.0,0.03497484]
[1757262393026,0.23214229,111290.0,111280.0,0.03497484]
[1757262393227,1.06319229,111290.0,111280.0,0.03497484]
[1757262396635,0.86527,111290.0,111280.0,0.03497484]
[1757262396834,1.06319229,111290.0,111280.0,0.03497484]
[1757262397030,1.06319229,111290.0,111280.0,0.148186]
[1757262397833,0.86527,111290.0,111280.0,0.148186]
[1757262398032,1.06319229,111290.0,111280.0,0.148186]
[1757262400836,1.06319229,111290.0,111280.0,0.03497484]
[1757262402139,0.86527,111290.0,111280.0,0.03497484]
[1757262402333,1.06319229,111290.0,111280.0,0.03497484]
[1757262405643,0.86527,111290.0,111280.0,0.03497484]
[1757262405832,1.06319229,111290.0,111280.0,0.03497484]
[1757262406038,0.86527,111290.0,111280.0,0.03497484]
[1757262406239,1.06319229,111290.0,111280.0,0.03497484]
[1757262407141,1.06319229,111290.0,111280.0,0.148186]
[1757262407443,1.06319229,111290.0,111280.0,0.148286]
[1757262407636,1.06319229,111290.0,111280.0,0.03507484]
[1757262408043,1.06319229,111290.0,111280.0,0.148286]
[1757262410842,0.86527,111290.0,111280.0,0.148286]
[1757262411041,0.04495,111290.0,111280.0,0.59620829]
[1757262411238,0.68447,111290.0,111280.0,0.59620829]
[1757262411638,0.68447,111290.0,111280.0,0.398286]
[1757262411834,0.68447,111290.0,111280.0,0.59620829]
[1757262413746,0.68447,111290.0,111280.0,0.398286]
[1757262414045,0.68447,111290.0,111280.0,0.59620829]
[1757262414347,0.68447,111290.0,111280.0,0.398286]
[1757262416957,0.88239229,111290.0,111280.0,0.398286]
[1757262417144,0.68447,111290.0,111280.0,0.398286]
[1757262417544,0.68447,111290.0,111280.0,0.28507484]
[1757262418249,0.68447,111290.0,111280.0,0.44668031]
[1757262419148,0.68447,111290.0,111280.0,0.28507484]
[1757262419749,0.68447,111290.0,111280.0,0.10524351]
[1757262420050,0.89594229,111290.0,111270.0,0.37318776]
[1757262420245,1.14594229,111290.0,111280.0,0.02263]
[1757262420752,0.94802,111290.0,111280.0,0.02263]
[1757262421951,1.14594229,111290.0,111280.0,0.02263]
[1757262422352,1.14494229,111290.0,111280.0,0.02263]
[1757262422552,1.14594229,111290.0,111280.0,0.02263]
[1757262422952,0.94802,111290.0,111280.0,0.02263]
[1757262423153,1.14494229,111290.0,111280.0,0.02263]
[1757262423453,1.14594229,111290.0,111280.0,0.02263]
[1757262424055,1.14494229,111290.0,111280.0,0.02263]
[1757262424254,0.94802,111290.0,111280.0,0.02263]
[1757262424454,0.94802,111290.0,111280.0,0.22053266]
[1757262424756,1.14592266,111290.0,111280.0,0.22053266]
[1757262426756,1.14592266,111290.0,111280.0,0.02263]
[1757262426956,1.14592266,111290.0,111280.0,0.22053266]
[1757262428061,0.94802,111290.0,111280.0,0.22053266]
[1757262428258,1.14592266,111290.0,111280.0,0.22053266]
[1757262430657,0.94802,111290.0,111280.0,0.22053266]
[1757262430858,1.14592266,111290.0,111280.0,0.22053266]
[1757262431759,1.14592266,111290.0,111280.0,0.02263]
[1757262431960,1.14592266,111290.0,111280.0,0.38213813]
[1757262432458,0.94802,111290.0,111280.0,0.38213813]
[1757262432656,1.14592266,111290.0,111280.0,0.38213813]
[1757262434362,1.14592266,111290.0,111280.0,0.18423547]
[1757262434564,1.14592266,111290.0,111280.0,0.38213813]
[1757262435862,0.50640266,111290.0,111280.0,0.38213813]
[1757262436062,1.32824266,111290.0,111280.0,0.38213813]
[1757262436558,0.3085,111290.0,111280.0,0.38213813]
[1757262436765,1.04014,111290.0,111280.0,0.58004079]
[1757262436960,1.23804266,111290.0,111280.0,0.58004079]
[1757262437166,1.23804266,111290.0,111280.0,0.38213813]
[1757262437567,1.23804266,111290.0,111280.0,0.22053266]
[1757262440966,1.23804266,111290.0,111280.0,0.38213813]
[1757262441167,1.23804266,111290.0,111280.0,0.38223813]
[1757262442470,1.23804266,111290.0,111280.0,0.22063266]
[1757262442768,1.23804266,111290.0,111280.0,0.02273]
[1757262442958,1.23804266,111290.0,111280.0,0.22063266]
[1757262444971,1.23804266,111290.0,111280.0,0.3339248]
[1757262446065,1.04014,111290.0,111280.0,0.3339248]
[1757262446271,1.23804266,111290.0,111280.0,0.3339248]
[1757262446575,1.23804266,111290.0,111280.0,0.13602214]
[1757262446762,1.23804266,111290.0,111280.0,0.3339248]
[1757262446962,1.23804266,111290.0,111280.0,0.13602214]
[1757262447265,1.23804266,111290.0,111280.0,0.3339248]
[1757262452871,1.23804266,111290.0,111280.0,0.22063266]
[1757262459286,0.98804266,111290.0,111280.0,0.22063266]
[1757262460986,0.98804266,111290.0,111280.0,0.02273]
[1757262461287,0.98804266,111290.0,111280.0,0.22063266]
[1757262464089,1.23804266,111290.0,111280.0,0.0001]
[1757262464593,1.23804266,111290.0,111280.0,0.00459]
[1757262465892,0.50640266,111290.0,111280.0,0.00459]
[1757262466087,1.32860266,111290.0,111280.0,0.00459]
[1757262467288,1.32860266,111290.0,111280.0,0.11786079]
[1757262468698,1.1307,111290.0,111280.0,0.13979079]
[1757262468991,1.32860266,111290.0,111280.0,0.11786079]
[1757262473294,1.32888266,111290.0,111280.0,0.13979079]
[1757262474093,1.32900266,111290.0,111280.0,0.13979079]
[1757262477496,1.32900266,111290.0,111280.0,0.02652]
[1757262477699,1.32892266,111290.0,111280.0,0.02652]
[1757262478400,1.32880266,111290.0,111280.0,0.02652]
[1757262480305,0.50640266,111290.0,111280.0,0.02652]
[1757262480499,1.32880266,111290.0,111280.0,0.02652]
[1757262483505,1.32880266,111290.0,111280.0,0.18812547]
[1757262486312,1.32882428,111290.0,111280.0,0.18812547]
[1757262486606,1.32862428,111290.0,111280.0,0.18812547]
[1757262492108,0.50642428,111290.0,111280.0,0.51812547]
[1757262492309,1.32862428,111290.0,111280.0,0.51812547]
[1757262492509,0.50642428,111290.0,111280.0,0.35652]
[1757262492807,1.32866428,111290.0,111280.0,0.35652]
[1757262493710,0.3085,111290.0,111280.0,0.35652]
[1757262493904,1.13074,111290.0,111280.0,0.18812547]
[1757262494105,1.32866428,111290.0,111280.0,0.18812547]
[1757262494709,1.32866428,111290.0,111280.0,0.53812547]
[1757262495409,1.32866428,111290.0,111280.0,0.18812547]
[1757262495605,1.32866428,111290.0,111280.0,0.02652]
[1757262495807,1.32866428,111290.0,111280.0,0.38652]
[1757262496416,0.50642428,111290.0,111280.0,0.02652]
[1757262496603,1.32858428,111290.0,111280.0,0.02652]
[1757262497101,1.32858428,111290.0,111280.0,0.51812547]
[1757262501817,1.32858428,111290.0,111280.0,0.18812547]
[1757262502916,1.13066,111290.0,111280.0,0.18812547]
[1757262503117,1.32858428,111290.0,111280.0,0.18812547]
[1757262503330,1.32822428,111290.0,111280.0,0.18812547]
[1757262503513,1.32822428,111290.0,111280.0,0.49812547]
[1757262504017,1.32822428,111290.0,111280.0,0.55812547]
[1757262504218,1.32822428,111290.0,111280.0,0.18812547]
[1757262504619,1.32822428,111290.0,111280.0,0.49812547]
[1757262505119,1.32822428,111290.0,111280.0,0.18812547]
[1757262507025,0.50642428,111290.0,111280.0,0.51812547]
[1757262507225,1.32810428,111290.0,111280.0,0.18812547]
[1757262508132,1.32810428,111290.0,111280.0,0.55812547]
[1757262508423,1.32810428,111290.0,111280.0,0.18812547]
[1757262508624,1.32810428,111290.0,111280.0,0.50812547]
[1757262509424,1.32810428,111290.0,111280.0,0.18812547]
[1757262510322,0.50642428,111290.0,111280.0,0.18812547]
[1757262510526,1.32766428,111290.0,111280.0,0.18812547]
[1757262510825,1.32766428,111290.0,111280.0,0.53812547]
[1757262511032,1.32766428,111290.0,111280.0,0.18812547]
[1757262513533,1.32766428,111290.0,111280.0,0.51812547]
[1757262513731,1.32766428,111290.0,111280.0,0.18812547]
[1757262519348,1.07766428,111290.0,111280.0,0.18812547]
[1757262519550,1.07766428,111290.0,111280.0,0.50812547]
[1757262519752,1.07766428,111290.0,111280.0,0.18812547]
[1757262522852,1.07766428,111290.0,111280.0,0.56812547]
[1757262523855,1.07766428,111290.0,111280.0,0.18812547]
[1757262524653,0.87974,111290.0,111280.0,0.18812547]
[1757262524855,1.07766428,111290.0,111280.0,0.18812547]
[1757262526154,1.07766428,111290.0,111280.0,0.51812547]
[1757262526356,1.07766428,111290.0,111280.0,0.18812547]
[1757262527757,1.07766428,111290.0,111280.0,0.55812547]
[1757262530060,1.07766428,111290.0,111280.0,0.18812547]
[1757262530460,1.07766428,111290.0,111280.0,0.55812547]
[1757262531866,1.07766428,111290.0,111280.0,0.02652]
[1757262532162,1.07766428,111290.0,111280.0,0.37652]
[1757262532363,1.07766428,111290.0,111280.0,0.02652]
[1757262533765,1.07766428,111290.0,111280.0,0.15652]
[1757262540470,1.07766428,111290.0,111280.0,0.26981541]
[1757262543674,1.07766428,111290.0,111280.0,0.15652]
[1757262543973,1.07766428,111290.0,111280.0,0.31812547]
[1757262546277,1.07766824,111290.0,111280.0,0.31812547]
[1757262547278,1.07766824,111290.0,111280.0,0.51605371]
[1757262551884,1.07766824,111290.0,111280.0,0.31812547]
[1757262552084,1.07766824,111290.0,111280.0,0.51605371]
[1757262552480,0.87974,111290.0,111280.0,0.31812547]
[1757262552784,1.07766824,111290.0,111280.0,0.31812547]
[1757262553586,0.87974,111290.0,111280.0,0.31812547]
[1757262553786,1.07766824,111290.0,111280.0,0.31812547]
[1757262557586,1.07766824,111290.0,111280.0,0.29619547]
[1757262557786,1.07766824,111290.0,111280.0,0.16160547]
[1757262557986,1.07766824,111290.0,111280.0,0.28160547]
[1757262558593,0.87974,111290.0,111280.0,0.28160547]
[1757262558786,1.07766824,111290.0,111280.0,0.28160547]
[1757262560090,1.07766824,111290.0,111280.0,0.12]
[1757262561589,1.07766824,111290.0,111280.0,0.28160547]
[1757262573693,0.87974,111290.0,111280.0,0.14276]
[1757262573998,0.25642824,111290.0,111280.0,0.14276]
[1757262574200,1.07474824,111290.0,111280.0,0.14276]
[1757262574801,1.07474824,111290.0,111280.0,0.12]
[1757262575902,0.03561,111280.0,111270.0,0.39951479]
[1757262576095,0.23353824,111280.0,111270.0,0.49951479]
[1757262576501,0.23353824,111280.0,111270.0,0.53951479]
[1757262578504,0.23353824,111280.0,111270.0,0.37790932]
[1757262578905,0.24426824,111280.0,111270.0,0.37790932]
[1757262579507,0.25760824,111280.0,111270.0,0.37790932]
[1757262580605,0.25860824,111280.0,111270.0,0.37790932]
[1757262580804,0.25960824,111280.0,111270.0,0.37790932]
[1757262587815,0.25960824,111280.0,111270.0,0.17998108]
[1757262588017,0.25960824,111280.0,111270.0,0.37790932]
[1757262589619,0.25960824,111280.0,111270.0,0.37813146]
[1757262592620,0.06168,111280.0,111270.0,0.37813146]
[1757262593014,0.25960824,111280.0,111270.0,0.37813146]
[1757262593317,0.06168,111280.0,111270.0,0.37813146]
[1757262593518,0.25960824,111280.0,111270.0,0.37813146]
[1757262596818,0.24626824,111280.0,111270.0,0.37813146]
[1757262598824,0.04834,111280.0,111270.0,0.37813146]
[1757262599123,0.24626824,111280.0,111270.0,0.36813146]
[1757262600420,0.24626824,111280.0,111270.0,0.58813146]
[1757262601225,0.24626824,111280.0,111270.0,0.23813146]
[1757262601420,0.24626824,111280.0,111270.0,0.55813146]
[1757262603326,0.24626824,111280.0,111270.0,0.04020322]
[1757262603622,0.24626824,111280.0,111270.0,0.42020322]
[1757262603822,0.24626824,111280.0,111270.0,0.23813146]
[1757262604826,0.24626824,111280.0,111270.0,0.58813146]
[1757262606627,0.24626824,111280.0,111270.0,0.60101146]
[1757262606828,0.04834,111280.0,111270.0,0.25101146]
[1757262607020,0.04834,111280.0,111270.0,0.27101146]
[1757262607627,0.04834,111280.0,111270.0,0.60101146]
[1757262608224,0.03447,111280.0,111270.0,0.60101146]
[1757262608424,0.03447,111280.0,111270.0,0.60098991]
[1757262610529,0.03447,111280.0,111270.0,0.27098991]
[1757262610727,0.03447,111280.0,111270.0,0.58098991]
[1757262611228,0.04758,111280.0,111270.0,0.25098991]
[1757262611729,0.04758,111280.0,111270.0,0.57098991]
[1757262614329,0.04758,111280.0,111270.0,0.25098991]
[1757262614828,0.04758,111280.0,111270.0,0.56098991]
[1757262615128,0.04758,111280.0,111270.0,0.62098991]
[1757262616520,0.04758,111280.0,111270.0,0.25098991]
[1757262616722,0.04758,111280.0,111270.0,0.27098991]
[1757262617030,0.04758,111280.0,111270.0,0.25098991]
[1757262617330,0.04758,111280.0,111270.0,0.62098991]
[1757262619731,0.03447,111280.0,111270.0,0.62098991]
[1757262620134,0.03447,111280.0,111270.0,0.42308322]
[1757262620325,0.04758,111280.0,111270.0,0.62098991]
[1757262620931,0.04758,111280.0,111270.0,0.78283184]
[1757262621735,0.04758,111280.0,111270.0,0.58492515]
[1757262621939,0.04758,111280.0,111270.0,0.78283184]
[1757262623749,0.04758,111280.0,111270.0,0.74283184]
[1757262623941,0.04758,111280.0,111270.0,0.72995184]
[1757262624739,0.04758,111280.0,111270.0,0.74283184]
[1757262625041,0.03447,111280.0,111270.0,0.74283184]
[1757262631443,0.03447,111280.0,111270.0,0.58098991]
[1757262633435,0.03447,111280.0,111270.0,0.38308322]
[1757262633740,0.03447,111280.0,111270.0,0.58098991]
[1757262644753,0.03447,111280.0,111270.0,0.37020322]
[1757262644949,0.04845,111280.0,111270.0,0.37020322]
[1757262645160,0.04845,111280.0,111270.0,0.56810991]
[1757262646262,0.04845,111280.0,111270.0,0.23810991]
[1757262646456,0.04845,111280.0,111270.0,0.59121991]
[1757262647557,0.04845,111280.0,111270.0,0.39331322]
[1757262647757,0.04845,111280.0,111270.0,0.59121991]
[1757262649061,0.03447,111280.0,111270.0,0.59121991]
[1757262656561,0.04845,111280.0,111270.0,0.23810991]
[1757262657060,0.04845,111280.0,111270.0,0.60810991]
[1757262657550,0.04845,111280.0,111270.0,0.23810991]
[1757262657756,0.06342,111280.0,111270.0,0.58810991]
[1757262658263,0.06342,111280.0,111270.0,0.23810991]
[1757262658766,0.06342,111280.0,111270.0,0.55810991]
[1757262660963,0.06342,111280.0,111270.0,0.23810991]
[1757262661167,0.06342,111280.0,111270.0,0.57810991]
[1757262661462,0.06342,111280.0,111270.0,0.23810991]
[1757262662164,0.06342,111280.0,111270.0,0.54810991]
[1757262664370,0.06342,111280.0,111270.0,0.23810991]
[1757262664668,0.06342,111280.0,111270.0,0.61810991]
[1757262666970,0.06342,111280.0,111270.0,0.73139945]